bitfinex-derivatives/quotes_BTCF0:USTF0_20250506
["timestamp","ask_amount","ask_price","bid_price","bid_amount"]
[1746538759564,0.0323,93872.0,93854.0,0.45589993]
[1746538760367,0.2454107,93872.0,93854.0,0.63389993]
[1746538760569,0.0323,93872.0,93854.0,2.1183982]
[1746538760771,0.245411,93872.0,93854.0,2.1183982]
[1746538761067,0.213113,93871.0,93854.0,2.6183982]
[1746538761565,0.0323,93872.0,93854.0,2.6183982]
[1746538762371,0.2454101,93872.0,93854.0,2.6183982]
[1746538762555,0.0323,93872.0,93854.0,2.63412185]
[1746538762963,0.2131122,93871.0,93854.0,2.63412185]
[1746538763172,0.0323,93872.0,93854.0,2.63412185]
[1746538763575,0.2131179,93869.0,93854.0,2.63412185]
[1746538764073,0.2131184,93868.0,93854.0,2.63412185]
[1746538764373,0.0318,93867.0,93854.0,2.63412185]
[1746538766369,0.0318,93867.0,93854.0,2.70700185]
[1746538766870,0.0318,93867.0,93866.0,0.2131229]
[1746538767066,0.0318,93867.0,93866.0,0.59783745]
[1746538767575,0.0318,93867.0,93866.0,2.09783745]
[1746538767775,0.0318,93867.0,93866.0,2.16073745]
[1746538767975,0.0318,93867.0,93866.0,2.16112296]
[1746538768477,0.0318,93867.0,93866.0,2.66112296]
[1746538768776,0.2449206,93867.0,93866.0,2.59822296]
[1746538769364,0.2449206,93867.0,93866.0,2.60035365]
[1746538769566,0.19722489,93867.0,93866.0,2.60035365]
[1746538769871,0.19722489,93867.0,93866.0,2.01803271]
[1746538770064,0.19722489,93867.0,93866.0,2.21525359]
[1746538770974,0.19722489,93867.0,93866.0,1.71525359]
[1746538772676,0.19722489,93867.0,93866.0,1.78813359]
[1746538773067,0.19722489,93867.0,93866.0,1.80366244]
[1746538773268,0.22972489,93867.0,93866.0,1.8199781]
[1746538773478,0.22972489,93867.0,93866.0,2.1807781]
[1746538773479,0.0325,93867.0,93866.0,2.1807781]
[1746538773675,0.0305,93868.0,93867.0,0.2131206]
[1746538773878,0.0305,93868.0,93867.0,0.29303626]
[1746538774378,0.0305,93868.0,93867.0,0.30856511]
[1746538775578,0.0305,93868.0,93867.0,0.80856511]
[1746538775973,0.0325,93874.0,93873.0,0.213107]
[1746538776178,0.0325,93874.0,93873.0,0.22942266]
[1746538776979,0.0325,93874.0,93873.0,0.24529236]
[1746538777183,0.0301,93874.0,93873.0,0.24529236]
[1746538777571,0.0604,93874.0,93873.0,0.80879236]
[1746538778482,0.0301,93874.0,93873.0,0.80879236]
[1746538778781,0.0301,93874.0,93873.0,0.80876983]
[1746538779081,0.0602,93874.0,93873.0,0.80876983]
[1746538779471,0.2733048,93874.0,93873.0,0.74526983]
[1746538779873,0.0602,93874.0,93873.0,0.74526983]
[1746538782586,0.0602,93874.0,93873.0,0.74529258]
[1746538784276,0.2733048,93874.0,93873.0,0.53218558]
[1746538785382,0.2733048,93874.0,93873.0,0.24529258]
[1746538786092,0.2733048,93874.0,93873.0,0.24487779]
[1746538786388,0.2733048,93874.0,93873.0,0.03177079]
[1746538786688,0.2733048,93874.0,93873.0,0.22934894]
[1746538787092,0.2733048,93874.0,93873.0,0.01624194]
[1746538787292,0.2733048,93874.0,93873.0,0.22934894]
[1746538787484,0.2733048,93874.0,93873.0,0.01624194]
[1746538787792,0.2733048,93874.0,93873.0,0.22934894]
[1746538787983,0.2733048,93874.0,93873.0,0.2290916]
[1746538788876,0.2733048,93874.0,93873.0,0.213107]
[1746538789593,0.2131116,93871.0,93870.0,0.2859903]
[1746538794604,0.2131116,93871.0,93870.0,0.07288]
[1746538795398,0.2131206,93867.0,93866.0,0.37101102]
[1746538795599,0.2131206,93867.0,93866.0,0.44249102]
[1746538795993,0.2131206,93867.0,93866.0,0.43441069]
[1746538796393,0.2131206,93867.0,93866.0,0.67923359]
[1746538796899,0.2131206,93867.0,93866.0,0.46611069]
[1746538797197,0.0862785,93870.0,93866.0,0.46611069]
[1746538797399,0.2131184,93868.0,93867.0,0.0306]
[1746538797799,0.2441184,93868.0,93867.0,0.0637]
[1746538797998,0.2441184,93868.0,93867.0,0.2768206]
[1746538799004,0.031,93868.0,93867.0,0.2768206]
[1746538799393,0.2441184,93868.0,93867.0,0.2768206]
[1746538799594,0.031,93868.0,93867.0,0.2768206]
[1746538799995,0.2441184,93868.0,93867.0,0.2768206]
[1746538800606,0.2441184,93868.0,93867.0,0.0637]
[1746538800806,0.2441184,93868.0,93867.0,0.2768206]
[1746538801196,0.2441184,93868.0,93867.0,0.0637]
[1746538801397,0.2441184,93868.0,93866.0,0.37099803]
[1746538801398,0.031,93868.0,93866.0,0.37099803]
[1746538801600,0.2434206,93867.0,93866.0,0.00213069]
[1746538801911,0.2434206,93867.0,93860.0,0.16243449]
[1746538801912,0.2131343,93861.0,93860.0,0.11253449]
[1746538802602,0.4196743,93861.0,93860.0,0.06263449]
[1746538802802,0.2131456,93856.0,93848.0,0.27007876]
[1746538803104,0.5739456,93856.0,93848.0,0.27007876]
[1746538803305,0.6804936,93856.0,93848.0,0.27007876]
[1746538803609,0.2131615,93849.0,93848.0,0.2131628]
[1746538804709,0.2758615,93849.0,93848.0,0.2131628]
[1746538807210,0.2664626,93847.0,93846.0,0.2131664]
[1746538807610,0.3290626,93847.0,93846.0,0.2131664]
[1746538808908,0.3290626,93847.0,93846.0,0.2461664]
[1746538809105,0.3290626,93847.0,93846.0,0.033]
[1746538809504,0.3290626,93847.0,93846.0,0.2461683]
[1746538810907,0.2131478,93859.0,93858.0,0.0532846]
[1746538811108,0.2452478,93859.0,93858.0,0.3608]
[1746538811407,0.2131479,93855.0,93854.0,0.07152]
[1746538813004,0.2131638,93848.0,93847.0,0.3608]
[1746538813201,0.2131729,93844.0,93843.0,0.07152]
[1746538813398,0.5739729,93844.0,93843.0,0.07152]
[1746538813599,0.2131729,93844.0,93843.0,0.2846951]
[1746538814111,0.0327,93847.0,93843.0,0.07152]
[1746538814308,0.0327,93845.0,93844.0,0.2974655]
[1746538815012,0.213162,93849.0,93848.0,0.2131638]
[1746538815214,0.213162,93849.0,93848.0,0.5739638]
[1746538815808,0.2131638,93848.0,93847.0,0.0321]
[1746538816009,0.2131797,93841.0,93837.0,0.0093263]
[1746538816309,0.2131797,93841.0,93840.0,0.5739813]
[1746538816497,0.0326,93842.0,93841.0,0.2131797]
[1746538816696,0.0326,93842.0,93841.0,0.2442797]
[1746538817115,0.2457774,93842.0,93841.0,0.2442797]
[1746538817302,0.0326,93842.0,93841.0,0.2442797]
[1746538818011,0.213172,93845.0,93844.0,0.2131729]
[1746538820202,0.245172,93845.0,93844.0,0.2131729]
[1746538820409,0.2451706,93845.0,93844.0,0.2131729]
[1746538821599,0.2131774,93842.0,93841.0,0.0311]
[1746538821805,0.2131774,93842.0,93841.0,0.2442797]
[1746538822912,0.1065874,93844.0,93840.0,0.3608]
[1746538823215,0.2787797,93841.0,93840.0,0.3608]
[1746538824410,0.2131865,93838.0,93837.0,0.00159851]
[1746538825217,0.3197545,93838.0,93837.0,0.00159851]
[1746538825716,0.2131865,93838.0,93837.0,0.21478731]
[1746538825913,0.0656,93841.0,93840.0,0.213182]
[1746538826110,0.0324,93841.0,93840.0,0.573982]
[1746538826310,0.2131673,93847.0,93846.0,0.2131683]
[1746538826909,0.2463673,93847.0,93846.0,0.2131683]
[1746538829118,0.2131673,93847.0,93846.0,0.2131683]
[1746538829321,0.2131673,93847.0,93846.0,0.2445683]
[1746538830412,0.2131673,93847.0,93846.0,0.2753683]
[1746538830923,0.2432673,93847.0,93846.0,0.2753683]
[1746538831317,0.2432673,93847.0,93846.0,0.0622]
[1746538831516,0.2432673,93847.0,93846.0,0.0314]
[1746538831818,0.2432673,93847.0,93845.0,0.3608]
[1746538831819,0.2131683,93846.0,93845.0,0.3608]
[1746538832018,0.2455683,93846.0,93845.0,0.3608]
[1746538833124,0.2455683,93846.0,93845.0,0.5739706]
[1746538833926,0.2455683,93846.0,93845.0,0.6347706]
[1746538834528,0.2455683,93846.0,93845.0,0.4216]
[1746538834823,0.2455683,93846.0,93845.0,0.6044706]
[1746538835827,0.2455683,93846.0,93845.0,0.3913]
[1746538837221,0.6063683,93846.0,93845.0,0.0305]
[1746538837425,0.2131865,93838.0,93837.0,0.07243851]
[1746538837811,0.5739865,93838.0,93837.0,0.00159851]
[1746538838316,0.6342865,93838.0,93837.0,0.00159851]
[1746538839822,0.7342865,93838.0,93837.0,0.00159851]
[1746538840622,0.7342865,93838.0,93837.0,0.57558731]
[1746538840623,0.2434865,93838.0,93837.0,0.57558731]
[1746538840815,0.2664789,93840.0,93839.0,0.2131842]
[1746538841015,0.2131783,93842.0,93841.0,0.2131751]
[1746538841427,0.2131783,93842.0,93841.0,0.2443751]
[1746538843425,0.13497175,93848.0,93841.0,0.2443751]
[1746538843426,0.13497175,93848.0,93847.0,0.2131661]
[1746538843831,0.13497175,93848.0,93847.0,0.3197221]
[1746538844126,0.13497175,93848.0,93847.0,0.4977221]
[1746538844337,0.13497175,93848.0,93847.0,2.0308221]
[1746538844720,0.13497175,93848.0,93847.0,2.5308221]
[1746538845331,0.07233726,93848.0,93847.0,2.5608221]
[1746538846335,0.2131171,93869.0,93868.0,0.2131184]
[1746538846635,0.214101,93876.0,93875.0,0.2131025]
[1746538846818,0.001,93876.0,93875.0,0.2131025]
[1746538847527,0.001,93876.0,93875.0,0.22135488]
[1746538848328,0.2141002,93876.0,93875.0,0.22135488]
[1746538850732,0.001,93876.0,93875.0,0.22135488]
[1746538851427,0.001,93876.0,93875.0,0.22952606]
[1746538852327,0.0005,93890.0,93889.0,0.2130707]
[1746538852531,0.0005,93890.0,93889.0,1.0055107]
[1746538852730,0.0005,93890.0,93889.0,2.1447107]
[1746538852927,0.0005,93890.0,93889.0,2.2839107]
[1746538853231,0.2135684,93890.0,93889.0,2.3147107]
[1746538853533,0.0005,93890.0,93889.0,2.31684087]
[1746538855135,0.0005,93890.0,93889.0,2.42334887]
[1746538855335,0.0005,93890.0,93889.0,2.60134887]
[1746538855827,0.0532448,93930.0,93899.0,0.213048]
[1746538856026,0.2130016,93920.0,93899.0,0.583848]
[1746538856226,0.2130012,93920.0,93899.0,0.858344]
[1746538856430,0.0303,93921.0,93899.0,0.868344]
[1746538856635,0.0015,93925.0,93899.0,0.868344]
[1746538857138,0.0501,93900.0,93899.0,0.868344]
[1746538857532,0.0501,93900.0,93899.0,2.618344]
[1746538857734,0.0015,93925.0,93924.0,0.2129913]
[1746538857935,0.0015,93925.0,93924.0,1.0054313]
[1746538858336,0.214489,93925.0,93924.0,2.5054313]
[1746538858536,0.214489,93925.0,93924.0,2.32444]
[1746538858935,0.214489,93925.0,93924.0,2.5374313]
[1746538859128,0.277289,93925.0,93924.0,2.5374313]
[1746538859337,0.277289,93925.0,93924.0,3.0374313]
[1746538859532,0.277289,93925.0,93924.0,3.0683313]
[1746538860028,0.0643,93925.0,93924.0,3.0683313]
[1746538860842,0.277289,93925.0,93924.0,2.07084]
[1746538861444,0.277289,93925.0,93924.0,0.57084]
[1746538861641,0.527289,93925.0,93924.0,0.57084]
[1746538861947,0.527289,93925.0,93914.0,0.3608]
[1746538861948,0.2130117,93915.0,93914.0,0.3608]
[1746538863137,0.2130117,93915.0,93914.0,0.573814]
[1746538863949,0.6230117,93915.0,93914.0,0.573814]
[1746538864439,0.41,93915.0,93914.0,0.573814]
[1746538864644,0.0936,93917.0,93916.0,0.2130094]
[1746538864947,0.3066072,93917.0,93916.0,0.22847949]
[1746538865243,0.0936,93917.0,93916.0,0.22847949]
[1746538865447,0.0612,93917.0,93916.0,0.22847949]
[1746538865739,0.0612,93917.0,93916.0,0.25847949]
[1746538865945,0.0612,93917.0,93916.0,0.22847949]
[1746538866246,0.0612,93917.0,93916.0,0.2130094]
[1746538867148,0.0925,93917.0,93916.0,0.2130094]
[1746538867642,0.0925,93917.0,93914.0,0.467306]
[1746538867643,0.2130117,93915.0,93914.0,0.3608]
[1746538869448,0.2130117,93915.0,93914.0,0.573814]
[1746538871645,0.2130117,93915.0,93914.0,0.58932883]
[1746538872252,0.2130117,93915.0,93914.0,0.573814]
[1746538874258,0.2130117,93915.0,93914.0,0.58938335]
[1746538875257,0.2130117,93915.0,93914.0,0.573814]
[1746538880560,0.2130117,93915.0,93914.0,0.3608]
[1746538880760,0.2130117,93915.0,93914.0,0.573814]
[1746538882763,0.0925,93917.0,93916.0,0.2130094]
[1746538882959,0.0612,93917.0,93916.0,0.2130094]
[1746538883262,0.0927,93930.0,93924.0,0.2129913]
[1746538883457,0.2129838,93928.0,93924.0,0.59951012]
[1746538883763,0.2129838,93928.0,93924.0,0.58951012]
[1746538883952,0.2129838,93928.0,93924.0,0.60527622]
[1746538884153,0.001,93936.0,93924.0,1.27454422]
[1746538884462,0.001,93936.0,93924.0,1.28454422]
[1746538884651,0.0623,93950.0,93924.0,2.57155292]
[1746538884852,0.0015,93960.0,93956.0,0.212912]
[1746538885056,0.2661458,93957.0,93956.0,0.2661406]
[1746538885261,0.2661458,93957.0,93956.0,0.22904847]
[1746538885859,0.2661458,93957.0,93956.0,0.24504159]
[1746538886059,0.2661458,93957.0,93956.0,0.25399591]
[1746538886667,0.2661458,93957.0,93956.0,0.24504159]
[1746538887164,0.2129165,93957.0,93956.0,0.24504159]
[1746538887463,0.2129122,93959.0,93958.0,0.2129142]
[1746538887660,0.2144097,93960.0,93959.0,0.212912]
[1746538887961,0.0015,93960.0,93959.0,0.33034847]
[1746538888161,0.0015,93960.0,93959.0,0.45276959]
[1746538888562,0.0015,93960.0,93959.0,0.46071913]
[1746538888762,0.0015,93960.0,93959.0,0.34634159]
[1746538889062,0.2144097,93960.0,93959.0,0.31584159]
[1746538889257,0.0015,93960.0,93959.0,0.31584159]
[1746538889453,0.0015,93960.0,93959.0,1.81584159]
[1746538889654,0.0015,93960.0,93959.0,1.82395015]
[1746538889856,0.0015,93960.0,93959.0,2.32395015]
[1746538890158,0.0015,93960.0,93959.0,2.30795703]
[1746538891055,0.0015,93960.0,93959.0,2.29182056]
[1746538891366,0.0015,93960.0,93959.0,2.30751701]
[1746538891570,0.0015,93960.0,93959.0,2.32308781]
[1746538891763,0.0015,93960.0,93959.0,2.25228781]
[1746538891962,0.0015,93960.0,93959.0,2.32304781]
[1746538892562,0.0015,93960.0,93959.0,2.30747701]
[1746538894261,0.0015,93960.0,93959.0,2.32340311]
[1746538894567,0.0015,93960.0,93959.0,2.32424705]
[1746538895165,0.0015,93960.0,93959.0,2.43067478]
[1746538896064,0.0015,93960.0,93959.0,2.50067478]
[1746538896571,0.0015,93960.0,93959.0,2.25348678]
[1746538896867,0.0015,93960.0,93959.0,2.32424678]
[1746538897066,0.0319,93977.0,93969.0,0.0532218]
[1746538897368,0.2447712,93977.0,93976.0,0.2128735]
[1746538897666,0.2447712,93977.0,93976.0,0.22941362]
[1746538898263,0.2447712,93977.0,93976.0,0.24533972]
[1746538898471,0.0319,93977.0,93976.0,0.24533972]
[1746538899171,0.0319,93977.0,93976.0,1.74533972]
[1746538899356,0.0319,93977.0,93976.0,1.77713972]
[1746538900162,0.2128599,93982.0,93978.0,0.2128689]
[1746538900361,0.2447599,93982.0,93978.0,0.59020902]
[1746538900557,0.2447599,93982.0,93978.0,0.60613512]
[1746538901169,0.0319,93982.0,93978.0,0.60613512]
[1746538902075,0.24476,93982.0,93978.0,0.60613512]
[1746538902366,0.0323,93981.0,93978.0,0.605631]
[1746538902580,0.0323,93981.0,93978.0,1.105631]
[1746538902769,0.0323,93981.0,93978.0,2.605631]
[1746538903371,0.0319,93982.0,93981.0,0.2128621]
[1746538903572,0.0319,93982.0,93981.0,0.2288981]
[1746538904166,0.0319,93982.0,93981.0,0.2448242]
[1746538904374,0.0319,93982.0,93981.0,0.7448242]
[1746538904568,0.2447599,93982.0,93981.0,0.7287882]
[1746538905174,0.2447599,93982.0,93981.0,0.7128621]
[1746538905566,0.2447599,93982.0,93981.0,0.2128621]
[1746538906973,0.0319,93982.0,93981.0,0.22896316]
[1746538907178,0.0319,93982.0,93981.0,0.22896326]
[1746538907669,0.0015,93995.0,93991.0,0.2128395]
[1746538907873,0.063,93994.0,93991.0,0.58974066]
[1746538908177,0.063,93994.0,93991.0,0.6054535]
[1746538908373,0.2758337,93994.0,93991.0,0.6054535]
[1746538908574,0.2429372,93992.0,93991.0,0.6054535]
[1746538908773,0.0301,93992.0,93991.0,0.6054535]
[1746538909172,0.0301,93992.0,93991.0,0.58974066]
[1746538909371,0.0301,93992.0,93991.0,0.59841872]
[1746538909684,0.0301,93992.0,93991.0,0.5984466]
[1746538910575,0.0015,93995.0,93994.0,0.2128327]
[1746538910873,0.0331,93995.0,93994.0,0.22896174]
[1746538911078,0.0331,93995.0,93994.0,0.24458414]
[1746538911878,0.0654,93995.0,93994.0,0.24458414]
[1746538912272,0.0654,93995.0,93994.0,0.22896174]
[1746538913377,0.1186078,93995.0,93994.0,0.03188773]
[1746538913679,0.3314382,93995.0,93994.0,0.01560854]
[1746538914067,0.4314382,93995.0,93994.0,0.01560854]
[1746538914272,0.3314382,93995.0,93994.0,0.01560854]
[1746538914472,0.4314382,93995.0,93994.0,0.01560854]
[1746538914881,0.2128531,93985.0,93984.0,0.2835753]
[1746538915283,0.2128531,93985.0,93984.0,0.2128553]
[1746538915785,0.2761531,93985.0,93984.0,0.0159163]
[1746538915978,0.2761531,93985.0,93984.0,0.2287716]
[1746538916178,0.2761531,93985.0,93984.0,0.2128553]
[1746538916780,0.266077,93983.0,93982.0,0.212859]
[1746538916979,0.0532174,93978.0,93970.0,0.00212833]
[1746538917185,0.0532178,93977.0,93975.0,0.00212822]
[1746538917478,0.2128735,93976.0,93975.0,0.21500392]
[1746538917878,0.2761735,93976.0,93975.0,0.21500392]
[1746538918080,0.3073735,93976.0,93975.0,0.21500392]
[1746538919072,0.0945,93976.0,93975.0,0.21500392]
[1746538919276,0.0945,93976.0,93975.0,0.26201277]
[1746538919485,0.3073735,93976.0,93975.0,0.26201795]
[1746538919681,0.3073735,93976.0,93975.0,0.04914241]
[1746538919982,0.3073735,93976.0,93975.0,0.23061812]
[1746538920180,0.3073735,93976.0,93975.0,0.23061811]
[1746538920380,0.3073735,93976.0,93975.0,0.23062174]
[1746538920677,0.3073735,93976.0,93975.0,0.01774687]
[1746538920882,0.3073735,93976.0,93975.0,0.23062276]
[1746538921474,0.3073735,93976.0,93975.0,0.2306265]
[1746538921676,0.0945,93976.0,93975.0,0.26352622]
[1746538921871,0.0945,93976.0,93975.0,0.29382611]
[1746538922076,0.266056,93991.0,93990.0,0.2128417]
[1746538922275,0.0313,93991.0,93990.0,0.22846389]
[1746538922881,0.2441395,93991.0,93990.0,0.22846389]
[1746538923285,0.0313,93991.0,93990.0,0.22846389]
[1746538923680,0.064,93991.0,93990.0,0.22846389]
[1746538924285,0.064,93991.0,93990.0,0.58926389]
[1746538924678,0.064,93991.0,93990.0,0.62176389]
[1746538924679,0.0313,93991.0,93990.0,0.62176389]
[1746538924885,0.0313,93991.0,93990.0,0.66383423]
[1746538925287,0.0313,93991.0,93990.0,0.65486389]
[1746538929281,0.03160556,93991.0,93990.0,0.65486389]
[1746538929481,0.03160556,93991.0,93990.0,0.65515997]
[1746538932090,0.00030556,93991.0,93990.0,0.65515997]
[1746538932483,0.00030556,93991.0,93990.0,0.72795997]
[1746538933289,0.00030556,93991.0,93990.0,0.72825547]
[1746538933490,0.00030556,93991.0,93990.0,1.22825547]
[1746538936900,0.00030556,93991.0,93990.0,2.72825547]
[1746538937293,0.00030556,93991.0,93990.0,2.72779693]
[1746538937796,6e-08,93991.0,93990.0,2.72779693]
[1746538938101,6e-08,93991.0,93990.0,2.74779693]
[1746538940396,6e-08,93996.0,93995.0,0.2128304]
[1746538940598,6e-08,93996.0,93995.0,0.63938563]
[1746538940894,6e-08,93996.0,93995.0,0.74577363]
[1746538941291,6e-08,93996.0,93995.0,0.80907363]
[1746538941889,0.032,94019.0,93995.0,0.80907363]
[1746538941890,0.0015,94030.0,94025.0,0.2127625]
[1746538942102,0.0328,94029.0,94025.0,0.58931773]
[1746538942295,0.032,94028.0,94025.0,0.5735625]
[1746538942495,0.2137603,94026.0,94025.0,0.58918302]
[1746538942698,0.2137603,94026.0,94025.0,0.61958302]
[1746538942896,0.001,94026.0,94025.0,0.61958302]
[1746538943097,0.2137603,94026.0,94025.0,0.61958302]
[1746538943497,0.001,94026.0,94025.0,0.61958302]
[1746538944094,0.0638,94026.0,94025.0,0.61958302]
[1746538944404,0.0638,94026.0,94025.0,0.61974071]
[1746538944592,0.2765603,94026.0,94025.0,0.58934071]
[1746538945000,0.2765603,94026.0,94025.0,0.22854071]
[1746538945200,0.2765603,94026.0,94025.0,0.01577821]
[1746538945405,0.2765603,94026.0,94019.0,0.0304]
[1746538945406,0.2127784,94018.0,94017.0,0.07276]
[1746538945610,0.2659819,94015.0,94014.0,0.2127874]
[1746538945798,0.3191787,94015.0,94011.0,0.00788131]
[1746538946000,0.2127919,94012.0,94011.0,0.00788131]
[1746538946200,0.2660062,94008.0,94007.0,0.2128026]
[1746538946399,0.2128055,94008.0,94007.0,0.2128026]
[1746538946602,0.2743055,94008.0,94007.0,0.2128026]
[1746538947004,0.2743055,94008.0,94007.0,0.22842158]
[1746538947309,0.2743055,94008.0,94007.0,0.2128026]
[1746538947604,0.0615,94008.0,94007.0,0.2128026]
[1746538948299,0.0314,94008.0,94007.0,0.2428026]
[1746538948904,0.0305,94017.0,94016.0,0.2127829]
[1746538949105,0.0305,94017.0,94016.0,0.5735829]
[1746538950906,0.0946,94017.0,94016.0,0.5735829]
[1746538952300,0.3073806,94017.0,94016.0,0.5735829]
[1746538953809,0.0946,94017.0,94016.0,0.5735829]
[1746538954908,0.0946,94017.0,94016.0,0.6067829]
[1746538955706,0.0015,94030.0,94025.0,0.2127625]
[1746538955903,0.2127563,94028.0,94025.0,0.5735625]
[1746538956106,0.2127557,94028.0,94025.0,0.5735625]
[1746538956403,0.0634,94029.0,94025.0,0.5735625]
[1746538956801,0.2127574,94028.0,94025.0,0.5735625]
[1746538957010,0.2429574,94028.0,94025.0,0.5735625]
[1746538957212,0.2429571,94028.0,94025.0,0.5735625]
[1746538957403,0.0302,94028.0,94025.0,2.0735625]
[1746538958110,0.0302,94028.0,94025.0,2.1047625]
[1746538958904,0.2127597,94027.0,94025.0,2.1047625]
[1746538959101,0.0302,94028.0,94025.0,2.1047625]
[1746538962205,0.0313,94027.0,94025.0,2.1364625]
[1746538962516,0.2137603,94026.0,94025.0,1.8608]
[1746538962706,0.2450603,94026.0,94025.0,2.0735625]
[1746538962906,0.2450603,94026.0,94019.0,0.0318]
[1746538962907,0.0531907,94025.0,94019.0,0.0318]
[1746538963107,0.2659887,94014.0,94013.0,0.2127796]
[1746538963316,0.2127794,94018.0,94017.0,0.2659707]
[1746538963512,0.0313,94024.0,94020.0,0.0531933]
[1746538963717,0.001,94026.0,94025.0,0.2127625]
[1746538964713,0.001,94026.0,94025.0,0.2762625]
[1746538966108,0.001,94026.0,94025.0,0.7762625]
[1746538966308,0.001,94026.0,94025.0,0.77838959]
[1746538966710,0.2137603,94026.0,94025.0,0.50212709]
[1746538967507,0.2137603,94026.0,94025.0,0.00212709]
[1746538969215,0.2137603,94026.0,94025.0,0.21488959]
[1746538969609,0.2137603,94026.0,94025.0,0.00212709]
[1746538969807,0.2137603,94026.0,94025.0,0.21488959]
[1746538970009,0.2137603,94026.0,94025.0,0.00212709]
[1746538970414,0.2137603,94026.0,94025.0,0.21488959]
[1746538972015,0.2137603,94026.0,94025.0,0.00212709]
[1746538972214,0.5745603,94026.0,94025.0,0.00212709]
[1746538972809,0.6809163,94026.0,94025.0,0.00212709]
[1746538973613,0.7809163,94026.0,94025.0,0.00212709]
[1746538974005,0.6809163,94026.0,94025.0,0.00212709]
[1746538974908,0.5745603,94026.0,94025.0,0.00212709]
[1746538975510,0.5745603,94026.0,94025.0,0.21488959]
[1746538976519,0.2137603,94026.0,94025.0,0.21488959]
[1746538977211,0.2137603,94026.0,94025.0,0.00212709]
[1746538977420,0.001,94026.0,94025.0,0.21488959]
[1746538977721,0.2137603,94026.0,94025.0,0.21488959]
[1746538978020,0.2137603,94026.0,94025.0,0.24808959]
[1746538980618,0.001,94026.0,94025.0,0.24808959]
[1746538981027,0.001,94026.0,94025.0,0.27958959]
[1746538982627,0.0015,94030.0,94029.0,0.2127535]
[1746538982827,0.08198297,94053.0,94044.0,0.2127195]
[1746538982828,0.032,94052.0,94044.0,0.2127195]
[1746538983015,0.08198297,94053.0,94044.0,0.5735195]
[1746538983216,0.29468287,94053.0,94044.0,0.6445995]
[1746538983425,0.08198297,94053.0,94044.0,2.1445995]
[1746538983623,0.08198297,94053.0,94044.0,2.2080995]
[1746538983815,0.08198297,94053.0,94044.0,2.7080995]
[1746538984424,0.0912553,94045.0,94044.0,2.7080995]
[1746538985020,0.0912553,94045.0,94044.0,2.71711687]
[1746538985631,0.085574,94055.0,94054.0,0.2126969]
[1746538985821,0.3310711,94055.0,94054.0,0.3608]
[1746538986328,0.3310711,94055.0,94054.0,0.5734969]
[1746538986529,0.3310711,94055.0,94054.0,0.3608]
[1746538987021,0.4373911,94055.0,94054.0,0.3608]
[1746538987725,0.2127173,94045.0,94040.0,0.07108]
[1746538987923,0.2127263,94041.0,94040.0,0.07108]
[1746538988126,0.05318,94044.0,94032.0,0.3608]
[1746538988127,0.2127444,94033.0,94032.0,0.3608]
[1746538988519,0.2127603,94026.0,94025.0,0.00212709]
[1746538988921,0.3127603,94026.0,94025.0,0.00212709]
[1746538989118,0.4191163,94026.0,94025.0,0.00212709]
[1746538989425,0.3510163,94026.0,94025.0,0.00212709]
[1746538989622,0.4510163,94026.0,94025.0,0.00212709]
[1746538990224,0.5010163,94026.0,94025.0,0.00212709]
[1746538990417,0.2127784,94018.0,94017.0,0.16249026]
[1746538990614,0.6735784,94018.0,94017.0,0.16249026]
[1746538990825,0.7799424,94018.0,94017.0,0.16249026]
[1746538991325,0.8299424,94018.0,94017.0,0.16249026]
[1746538992113,0.83808229,94018.0,94017.0,0.16249026]
[1746538992523,0.83808229,94018.0,94012.0,0.00159553]
[1746538992524,0.2127897,94013.0,94012.0,0.00159553]
[1746538992823,0.3127897,94013.0,94012.0,0.00159553]
[1746538993027,0.4191577,94013.0,94012.0,0.00159553]
[1746538994321,0.3191577,94013.0,94012.0,0.00159553]
[1746538995626,0.2127897,94013.0,94012.0,0.00159553]
[1746538996125,0.2127897,94013.0,94012.0,0.24498743]
[1746538996324,0.2127897,94013.0,94012.0,0.06379553]
[1746538997026,0.2127897,94013.0,94012.0,0.27658743]
[1746538997825,0.0531958,94016.0,94012.0,0.27658743]
[1746538998024,0.15781995,94030.0,94012.0,0.27658743]
[1746538998025,0.0531906,94025.0,94012.0,0.06379553]
[1746538998227,0.5735693,94022.0,94021.0,0.2127716]
[1746538999120,0.5735693,94022.0,94021.0,0.2763716]
[1746538999927,0.2127693,94022.0,94021.0,0.2763716]
[1746539001626,0.2127693,94022.0,94021.0,0.0636]
[1746539001828,0.2127693,94022.0,94014.0,0.0302]
[1746539001829,0.2127851,94015.0,94014.0,0.0302]
[1746539002030,0.2127851,94015.0,94014.0,0.2745874]
[1746539002332,0.2127851,94015.0,94014.0,0.0618]
[1746539002722,0.2762851,94015.0,94014.0,0.2745874]
[1746539004131,0.2762851,94015.0,94014.0,0.0618]
[1746539004739,0.2762851,94015.0,94014.0,0.2745874]
[1746539005028,0.2762851,94015.0,94014.0,0.0618]
[1746539005331,0.2762851,94015.0,94014.0,0.2745874]
[1746539005532,0.2762851,94015.0,94014.0,0.0618]
[1746539005932,0.2762851,94015.0,94014.0,0.2745874]
[1746539007636,0.2431851,94015.0,94014.0,0.2745874]
[1746539010137,0.2431851,94015.0,94014.0,0.0316]
[1746539010337,0.2127897,94013.0,94012.0,0.00159553]
[1746539010737,0.2127897,94013.0,94012.0,0.21438743]
[1746539010938,0.2765897,94013.0,94012.0,0.00159553]
[1746539011138,0.2765897,94013.0,94012.0,0.21438743]
[1746539011346,0.573586,94015.0,94014.0,0.2127874]
[1746539011931,0.212786,94015.0,94014.0,0.2127874]
[1746539012534,0.212786,94015.0,94014.0,0.2745874]
[1746539013238,0.0305,94016.0,94015.0,0.2127851]
[1746539013441,0.2127581,94029.0,94028.0,0.2127535]
[1746539013643,0.2435581,94029.0,94028.0,0.2127535]
[1746539015933,0.2127581,94029.0,94028.0,0.2127535]
[1746539016646,0.2448459,94035.0,94034.0,0.2127422]
[1746539016837,0.212735,94038.0,94037.0,0.2127331]
[1746539019741,0.243935,94038.0,94037.0,0.2127331]
[1746539021634,0.0312,94038.0,94037.0,0.2127331]
[1746539022134,0.8922105,94048.0,94047.0,0.2127127]
[1746539022336,0.2127105,94048.0,94047.0,0.2127127]
[1746539022841,0.212715,94046.0,94045.0,0.2658946]
[1746539023042,0.212715,94046.0,94045.0,0.2127156]
[1746539023238,0.2127241,94043.0,94042.0,0.2127232]
[1746539023635,0.032,94043.0,94040.0,0.0531821]
[1746539023839,0.2127422,94034.0,94033.0,0.5735406]
[1746539024242,0.0531875,94031.0,94024.0,0.3608]
[1746539024442,0.2127625,94025.0,94024.0,0.6267445]
[1746539024837,0.2127595,94027.0,94026.0,0.2127603]